bitfinex/quotes_SOLUSD_20220118
["timestamp","ask_amount","ask_price","bid_price","bid_amount"]
[1642525820344,2.92,136.95,136.89,6.0]
[1642525820644,211.01554562,136.98,136.9,87.0661]
[1642525820849,211.01554562,136.98,136.9,87.3161]
[1642525821043,211.01554562,136.98,136.92,48.92553409]
[1642525821243,211.01554562,136.98,136.93,0.25]
[1642525821643,211.01554562,136.98,136.93,11.2025]
[1642525822344,213.93554562,136.98,136.93,11.2025]
[1642525822846,0.25,136.97,136.93,10.9525]
[1642525824445,2.92,136.98,136.93,10.9525]
[1642525824845,0.25,136.97,136.93,10.9525]
[1642525825849,0.25,136.97,136.92,10.9554]
[1642525826051,2.92,136.96,136.89,24.118]
[1642525826249,0.25,136.95,136.88,2.92]
[1642525826451,2.92,136.94,136.89,6.0]
[1642525826651,2.92,136.94,136.87,6.0]
[1642525826850,0.25,136.93,136.88,46.05500413]
[1642525827451,0.25,136.93,136.87,10.9593]
[1642525827849,11.2097,136.93,136.87,10.9593]
[1642525828052,11.2097,136.93,136.88,0.25]
[1642525828451,0.25,136.93,136.88,45.27317019]
[1642525829457,0.25,136.93,136.88,0.25]
[1642525829654,0.25,136.93,136.87,10.9593]
[1642525829854,17.2098,136.93,136.86,33.973]
[1642525830054,2.92,136.92,136.84,38.3034]
[1642525830257,2.92,136.92,136.85,6.0]
[1642525830453,2.92,136.92,136.86,40.37557351]
[1642525831158,0.25,136.91,136.86,40.37557351]
[1642525831956,2.922,136.95,136.86,40.37557351]
[1642525832255,48.4404,137.0,136.87,12.50905272]
[1642525832455,48.4404,137.0,136.88,99.9551]
[1642525832655,48.4404,137.0,136.89,6.0]
[1642525832954,40.14101717,136.99,136.9,52.2322463]
[1642525833155,2.92,136.98,136.92,10.9534]
[1642525833357,2.92,136.98,136.88,13.39]
[1642525833554,6.25,136.97,136.88,10.47]
[1642525833759,2.92,136.96,136.88,10.47]
[1642525834155,43.94383919,136.95,136.88,10.47]
[1642525834357,2.92,136.94,136.88,10.47]
[1642525834756,0.25,136.93,136.88,10.47]
[1642525835257,2.92,136.97,136.9,10.957]
[1642525835658,2.92,136.99,136.91,0.25]
[1642525836057,0.25,136.98,136.91,0.25]
[1642525836259,2.92,136.97,136.91,47.12877536]
[1642525836483,3.17,136.98,136.91,47.12877536]
[1642525836864,2.92,136.98,136.91,47.12877536]
[1642525837457,2.92,136.99,136.92,10.9547]
[1642525837656,2.92,136.99,136.92,19.3217]
[1642525837856,0.25,136.98,136.92,19.3217]
[1642525838261,2.92,136.99,136.92,19.3217]
[1642525838864,2.92,136.99,136.94,10.9534]
[1642525839064,2.92,137.0,136.94,10.9534]
[1642525839262,2.92,137.0,136.95,48.58729671]
[1642525839463,25.5298,137.01,136.95,48.33729671]
[1642525840162,0.25,137.0,136.95,48.33729671]
[1642525840364,4.37084374,137.0,136.95,48.33729671]
[1642525840563,4.37084374,137.0,136.95,59.28999671]
[1642525841865,4.12084374,136.99,136.95,59.28999671]
[1642525842166,4.12084374,136.99,136.95,10.9527]
[1642525842364,7.04084374,136.99,136.94,10.9536]
[1642525842967,11.1603492,136.99,136.94,10.9536]
[1642525843168,11.1603492,136.99,136.94,57.5883546]
[1642525843992,4.11950546,136.99,136.94,57.5883546]
[1642525844190,0.25,136.98,136.92,24.8468]
[1642525844391,0.25,136.98,136.91,2.92]
[1642525844591,2.92,136.97,136.91,2.92]
[1642525844790,0.25,136.96,136.91,2.92]
[1642525844990,2.92,136.95,136.91,2.92]
[1642525845190,2.92,136.95,136.92,39.56036317]
[1642525845391,2.92,136.97,136.92,39.56036317]
[1642525845589,2.92,136.98,136.92,39.56036317]
[1642525846189,7.03950546,136.98,136.92,39.56036317]
[1642525846394,7.03950546,136.98,136.92,50.51536317]
[1642525847192,2.92,136.98,136.93,0.25]
[1642525847394,4.11950546,136.99,136.94,10.9534]
[1642525847594,4.11950546,136.99,136.92,39.56036317]
[1642525847793,4.11950546,136.99,136.93,0.25]
[1642525847994,6.0,136.98,136.93,0.25]
[1642525848401,10.11950546,137.0,136.93,0.25]
[1642525849297,0.25,136.99,136.93,0.25]
[1642525849498,3.17,136.99,136.93,84.3938]
[1642525849797,2.92,136.99,136.93,84.3938]
[1642525850199,11.15928561,136.99,136.93,84.3938]
[1642525850401,8.23928561,136.99,136.93,84.3938]
[1642525851604,7.03950546,137.0,136.93,11.2038]
[1642525851805,7.03950546,137.0,136.93,18.5568]
[1642525852005,4.11950546,137.0,136.94,8.92]
[1642525852203,4.11950546,137.0,136.95,84.3896]
[1642525852404,4.11950546,137.01,136.96,2.92]
[1642525852604,4.11950546,137.01,136.97,40.61936761]
[1642525852803,4.11950546,137.01,136.97,40.86936761]
[1642525853003,4.11950546,137.01,136.98,79.19]
[1642525853208,4.11950546,137.01,136.99,87.41959997]
[1642525853406,4.11950546,137.01,136.99,93.38859997]
[1642525853606,4.11950546,137.01,136.99,20.19859997]
[1642525853810,4.11950546,137.04,136.99,20.19859997]
[1642525854309,4.11950546,137.04,137.0,44.22042413]
[1642525854508,4.11950546,137.04,136.99,13.97959997]
[1642525854708,7.03850546,137.04,137.0,0.25]
[1642525854907,4.11950546,137.04,137.0,0.25]
[1642525855107,7.03611563,137.05,136.99,10.9474]
[1642525855108,7.03850546,137.05,136.99,10.9474]
[1642525855308,0.25,137.03,136.98,16.9502]
[1642525855509,7.03850546,137.05,136.98,10.9502]
[1642525855710,0.25,137.04,136.99,0.25]
[1642525855909,7.03850546,137.05,136.97,122.69980702]
[1642525856315,4.11950546,137.04,136.98,0.25]
[1642525857112,4.11950546,137.04,136.99,10.9492]
[1642525857314,39.97188417,137.03,136.99,10.9492]
[1642525857515,39.97188417,137.03,136.97,49.50980702]
[1642525857717,42.89088417,137.03,136.98,0.25]
[1642525857916,39.97188417,137.03,136.97,6.0]
[1642525858118,2.919,137.02,136.97,6.0]
[1642525859118,2.919,137.02,136.96,21.4219]
[1642525859319,0.25,137.01,136.93,13.389]
[1642525859520,2.92,137.0,136.93,10.9543]
[1642525859719,0.25,136.99,136.92,23.3681]
[1642525859920,2.92,136.98,136.9,23.7513]
[1642525860120,46.60059991,136.98,136.91,40.38535117]
[1642525860321,0.25,136.97,136.91,40.38535117]
[1642525860522,2.92,136.98,136.91,40.38535117]
[1642525860722,2.92,136.98,136.92,10.955]
[1642525861423,49.83197065,136.98,136.92,10.955]
[1642525862228,0.25,136.97,136.9,34.708]
[1642525862427,2.92,136.96,136.87,13.39]
[1642525862624,2.92,136.96,136.87,10.47]
[1642525862841,0.25,136.95,136.87,10.47]
[1642525863041,2.92,136.94,136.88,42.93652911]
[1642525863442,13.8772,136.96,136.89,10.9572]
[1642525863741,13.8772,136.96,136.89,17.2072]
[1642525864144,36.92288571,136.95,136.89,17.2072]
[1642525864545,47.88128571,136.95,136.89,6.25]
[1642525864744,0.25,136.94,136.89,6.25]
[1642525864943,3.17,136.94,136.89,6.25]
[1642525865144,3.17,136.94,136.87,13.39]
[1642525865344,3.17,136.94,136.87,2.92]
[1642525865543,6.0,136.93,136.87,2.92]
[1642525865746,46.91197065,136.91,136.87,2.92]
[1642525865945,2.922,136.9,136.85,10.9606]
[1642525866846,2.922,136.9,136.84,10.9612]
[1642525867049,0.25,136.89,136.84,10.9612]
[1642525867646,0.25,136.89,136.83,10.47]
[1642525867847,2.922,136.88,136.8,2.922]
[1642525868048,2.922,136.88,136.8,10.47]
[1642525868246,0.25,136.87,136.8,10.47]
[1642525868448,2.923,136.86,136.8,10.47]
[1642525869049,39.84588571,136.86,136.8,59.4878568]
[1642525869551,39.84588571,136.86,136.8,10.47]
[1642525869850,36.92288571,136.86,136.8,10.47]
[1642525870150,3.173,136.85,136.78,2.923]
[1642525870551,2.923,136.85,136.78,2.923]
[1642525870750,38.46666763,136.83,136.78,2.923]
[1642525872053,38.46666763,136.83,136.77,85.09436848]
[1642525872254,6.0,136.84,136.78,6.25]
[1642525872450,6.0,136.84,136.78,17.2164]
[1642525872653,13.8884,136.86,136.78,17.2164]
[1642525872851,2.923,136.86,136.78,17.2164]
[1642525873052,6.0,136.85,136.79,2.923]
[1642525873253,2.923,136.87,136.8,0.25]
[1642525873453,2.923,136.87,136.8,49.28271326]
[1642525873651,2.923,136.87,136.8,60.24641326]
[1642525874453,13.8867,136.88,136.8,60.24641326]
[1642525874955,59.45246893,136.88,136.8,60.24641326]
[1642525875155,0.25,136.87,136.8,60.24641326]
[1642525875361,2.923,136.86,136.8,60.24641326]
[1642525877557,38.26908743,136.85,136.8,10.9637]
[1642525877857,2.923,136.84,136.79,10.47]
[1642525878056,2.923,136.84,136.78,6.0]
[1642525878258,0.25,136.83,136.78,6.0]
[1642525878666,0.25,136.83,136.76,2.923]
[1642525878860,2.924,136.82,136.73,34.1064]
[1642525879058,2.924,136.82,136.75,10.9685]
[1642525879059,13.893,136.82,136.75,10.9685]
[1642525879259,0.25,136.81,136.75,10.9685]
[1642525879459,2.924,136.8,136.75,10.9685]
[1642525879661,37.84713644,136.8,136.75,10.9685]
[1642525880062,0.25,136.79,136.75,10.9685]
[1642525880461,2.924,136.8,136.75,10.9685]
[1642525880662,2.924,136.81,136.75,10.9685]
[1642525880860,2.924,136.81,136.76,0.25]
[1642525881062,13.893,136.82,136.76,0.25]
[1642525881263,0.25,136.81,136.76,0.25]
[1642525881497,0.25,136.81,136.76,41.95616703]
[1642525882266,2.924,136.82,136.76,52.92376703]
[1642525882865,2.924,136.85,136.77,2.924]
[1642525883265,2.924,136.85,136.78,0.25]
[1642525883464,2.923,136.86,136.78,0.25]
[1642525883865,2.923,136.86,136.78,11.2156]
[1642525884064,2.923,136.86,136.79,39.1020076]
[1642525884264,2.923,136.86,136.8,0.25]
[1642525884465,38.73465748,136.85,136.8,0.25]
[1642525884767,2.923,136.86,136.8,0.25]
[1642525885366,13.887,136.88,136.8,0.25]
[1642525885566,6.0,136.87,136.8,0.25]
[1642525885766,60.71240028,136.88,136.8,0.25]
[1642525886570,60.71240028,136.88,136.8,11.2144]
[1642525887167,0.25,136.87,136.8,11.2144]
[1642525887371,2.923,136.86,136.8,11.2144]
[1642525887569,37.00945608,136.85,136.8,11.2144]
[1642525887774,37.00945608,136.85,136.8,10.9644]
[1642525887971,37.00945608,136.85,136.78,13.8886]
[1642525888169,3.173,136.84,136.78,10.9656]
[1642525890499,2.923,136.84,136.78,10.9656]
[1642525891599,13.89,136.84,136.77,62.16898161]
[1642525891800,0.25,136.83,136.78,6.25]
[1642525892602,0.25,136.83,136.78,0.25]
[1642525893202,6.25,136.83,136.78,0.25]
[1642525893600,17.2178,136.83,136.78,0.25]
[1642525894504,17.2178,136.83,136.77,40.73198161]
[1642525894704,41.75753347,136.82,136.77,40.73198161]
[1642525894902,41.75753347,136.82,136.76,10.9678]
[1642525895109,0.25,136.81,136.77,6.25]
[1642525895302,0.25,136.81,136.76,10.9678]
[1642525895504,2.924,136.8,136.75,10.9686]
[1642525895803,2.924,136.8,136.74,72.19444345]
[1642525897006,2.924,136.8,136.74,69.27044345]
[1642525897709,0.25,136.79,136.74,80.23984345]
[1642525897908,45.25032289,136.79,136.74,80.23984345]
[1642525898108,45.25032289,136.79,136.74,34.2588]
[1642525898509,45.25032289,136.79,136.74,10.9694]
[1642525898710,45.00032289,136.79,136.74,10.9694]
[1642525898908,2.924,136.8,136.74,10.9694]
[1642525899208,2.924,136.8,136.75,0.25]
[1642525899608,2.924,136.8,136.74,10.9694]
[1642525899810,43.92623782,136.8,136.74,10.9694]
[1642525900211,0.25,136.79,136.74,10.9694]
[1642525900611,0.25,136.79,136.73,10.9703]
[1642525900813,2.924,136.78,136.73,10.9703]
[1642525901211,0.25,136.77,136.73,10.9703]
[1642525901409,0.25,136.77,136.73,46.14823895]
[1642525902212,0.25,136.78,136.73,46.14823895]
[1642525903711,2.924,136.79,136.74,0.25]
[1642525903912,2.924,136.8,136.74,11.2189]
[1642525904113,84.94515859,136.82,136.74,14.1429]
[1642525904711,82.88664417,136.82,136.74,14.1429]
[1642525905112,6.0,136.81,136.74,14.1429]
[1642525905313,2.924,136.8,136.74,11.2189]
[1642525905711,0.25,136.79,136.74,11.2189]
[1642525905911,6.25,136.79,136.74,11.2189]
[1642525911921,6.25,136.79,136.72,27.0966]
[1642525912118,2.924,136.78,136.72,2.924]
[1642525912316,0.25,136.77,136.72,2.924]
[1642525912525,2.924,136.76,136.72,2.924]
[1642525912717,0.25,136.75,136.72,2.924]
[1642525912919,2.924,136.74,136.72,2.924]
[1642525913127,10.9766,136.73,136.66,3.5757281]
[1642525913317,2.924,136.72,136.67,1.92552333]
[1642525913519,9.419,136.72,136.67,1.92552333]
[1642525913716,0.25,136.71,136.67,1.92552333]
[1642525913925,2.926,136.7,136.67,1.92552333]
[1642525914117,42.26844417,136.69,136.67,1.92552333]
[1642525914319,53.49764417,136.69,136.67,1.92552333]
[1642525914619,60.55164417,136.69,136.67,1.92552333]
[1642525915319,60.55164417,136.69,136.63,2.926]
[1642525915521,60.55164417,136.69,136.65,0.25]
[1642525916921,49.57244417,136.69,136.65,0.25]
[1642525917123,42.51844417,136.69,136.65,0.25]
[1642525917519,42.51844417,136.69,136.64,0.25]
[1642525918420,53.49734417,136.69,136.64,0.25]
[1642525918926,2.926,136.68,136.64,0.25]
[1642525919322,2.926,136.68,136.63,0.25]
[1642525919520,13.9061,136.68,136.63,0.25]
[1642525920724,10.9801,136.68,136.63,0.25]
[1642525921723,13.9071,136.68,136.63,0.25]
[1642525924355,10.9801,136.68,136.62,21.4496]
[1642525924557,38.64241219,136.66,136.62,21.4496]
[1642525924757,38.64241219,136.66,136.61,24.793]
[1642525924957,38.64241219,136.66,136.62,6.0]
[1642525925158,0.25,136.65,136.6,6.0]
[1642525925359,3.177,136.65,136.6,6.0]
[1642525926462,14.1591,136.65,136.6,6.0]
[1642525926661,14.1591,136.65,136.59,6.0]
[1642525926861,3.177,136.65,136.59,6.25]
[1642525927260,3.177,136.65,136.59,6.0]
[1642525928060,3.177,136.65,136.6,47.58710878]
[1642525928463,3.177,136.65,136.61,6.0]
[1642525928663,2.927,136.69,136.61,6.25]
[1642525928866,2.927,136.69,136.61,6.0]
[1642525929067,10.9813,136.67,136.61,6.0]
[1642525929266,3.177,136.66,136.61,6.0]
[1642525929765,2.927,136.66,136.62,0.25]
[1642525930168,2.927,136.69,136.62,11.2291]
[1642525930367,3.177,136.69,136.62,11.2291]
[1642525930768,3.177,136.69,136.63,37.98099215]
[1642525931169,3.177,136.69,136.64,10.9773]
[1642525934873,3.177,136.69,136.65,6.0]
[1642525936874,0.25,136.69,136.65,10.9771]
[1642525937472,2.926,136.72,136.65,10.9771]
[1642525937672,57.34824068,136.74,136.66,46.40016318]
[1642525937882,57.34824068,136.74,136.67,10.9752]
[1642525938072,46.37314068,136.74,136.67,11.2252]
[1642525938474,2.926,136.74,136.67,11.2252]
[1642525938972,2.926,136.74,136.67,14.1512]
[1642525940176,68.98728266,136.75,136.67,14.1512]
[1642525940376,0.25,136.74,136.67,14.1512]
[1642525940777,68.98728266,136.75,136.67,14.1512]
[1642525942677,0.25,136.74,136.67,14.1512]
[1642525942881,0.25,136.74,136.67,87.3412]
[1642525943779,0.25,136.74,136.67,14.1512]
[1642525945481,0.25,136.74,136.68,6.0]
[1642525945680,2.926,136.76,136.69,49.00918515]
[1642525945882,23.5821,136.77,136.7,10.9715]
[1642525946080,6.0,136.76,136.7,10.9715]
[1642525946385,0.25,136.76,136.71,0.25]
[1642525946582,2.924,136.78,136.71,73.44]
[1642525946781,2.05851442,136.79,136.71,73.7]
[1642525946980,2.05851442,136.79,136.72,16.9708]
[1642525947180,2.05851442,136.79,136.73,0.25]
[1642525947380,2.05851442,136.79,136.73,82.44365702]
[1642525947780,4.98251442,136.81,136.73,82.44365702]
[1642525947979,0.25,136.8,136.73,82.44365702]
[1642525948180,2.924,136.79,136.73,82.44365702]
[1642525948587,2.924,136.8,136.74,10.9683]
[1642525948779,2.924,136.8,136.75,0.25]
[1642525949380,58.1589,136.82,136.74,6.0]
[1642525949381,2.924,136.81,136.74,6.0]
[1642525949579,2.924,136.81,136.75,0.25]
[1642525949779,0.25,136.8,136.75,0.25]
[1642525949981,2.924,136.81,136.76,10.9686]
[1642525950184,4.98251442,136.83,136.77,0.25]
[1642525950383,2.924,136.83,136.77,0.25]
[1642525950782,269.42367946,136.84,136.77,0.25]
[1642525950983,269.42367946,136.84,136.77,48.4794329]
[1642525951483,269.42367946,136.84,136.78,10.9659]
[1642525951683,267.36516504,136.84,136.79,0.25]
[1642525951884,27.7924,136.85,136.79,0.25]
[1642525952286,2.923,136.85,136.79,0.25]
[1642525952687,2.923,136.85,136.8,10.9641]
[1642525952884,36.70121442,136.88,136.81,73.19]
[1642525952885,4.98151442,136.88,136.81,73.19]
[1642525953086,4.98151442,136.88,136.81,79.44]
[1642525953486,4.98151442,136.88,136.81,79.7]
[1642525953684,2.923,136.88,136.82,43.90646816]
[1642525953885,2.05851442,136.9,136.83,2.922]
[1642525954086,2.05851442,136.9,136.83,82.362]
[1642525954288,2.05851442,136.9,136.83,82.622]
[1642525954488,2.05851442,136.9,136.84,10.47]
[1642525954687,2.05851442,136.9,136.85,0.25]
[1642525954888,2.05851442,136.9,136.85,6.25]
[1642525955088,2.922,136.92,136.85,6.25]
[1642525955292,2.922,136.92,136.86,35.93298797]
[1642525955688,2.922,136.92,136.87,6.25]
[1642525955890,2.922,136.92,136.87,17.209]
[1642525956517,2.922,136.92,136.87,16.959]
[1642525956717,0.25,136.91,136.84,10.47]
[1642525956917,2.922,136.9,136.83,2.922]
[1642525957116,2.922,136.9,136.84,6.0]
[1642525957316,0.25,136.89,136.84,6.0]
[1642525957718,2.922,136.88,136.84,6.0]
[1642525958117,0.25,136.87,136.83,2.922]
[1642525958318,0.25,136.87,136.82,21.4334]
[1642525958518,0.25,136.87,136.83,6.0]
[1642525959219,2.922,136.88,136.84,45.1079688]
[1642525959418,2.922,136.91,136.84,45.3579688]
[1642525959617,0.25,136.9,136.84,45.1079688]
[1642525959818,2.922,136.89,136.84,45.1079688]
[1642525960422,2.922,136.89,136.84,56.0694688]
[1642525961823,48.29714631,136.91,136.84,56.0694688]
[1642525961824,2.922,136.9,136.84,56.0694688]
[1642525962226,0.25,136.89,136.84,10.9615]
[1642525962423,11.2134,136.89,136.83,6.0]
[1642525962623,11.2134,136.89,136.84,0.25]
[1642525963028,0.25,136.89,136.84,0.25]
[1642525964627,0.25,136.89,136.83,16.962]
[1642525964827,11.213,136.89,136.83,6.0]
[1642525965028,18.138,136.89,136.81,24.1366]
[1642525965229,2.922,136.88,136.81,24.1366]
[1642525965630,37.10440901,136.87,136.81,24.1366]
[1642525965829,2.923,136.86,136.81,24.1366]
[1642525966430,2.923,136.86,136.8,10.9644]
[1642525966629,2.923,136.86,136.8,16.9644]
[1642525967432,2.923,136.86,136.81,0.25]
[1642525967634,48.06900901,136.87,136.81,0.25]
[1642525967932,0.25,136.87,136.81,11.2138]
[1642525968134,2.923,136.89,136.81,11.2138]
[1642525968333,0.25,136.88,136.81,11.2138]
[1642525969233,0.25,136.88,136.82,35.61217139]
[1642525969434,2.922,136.87,136.82,46.57537139]
[1642525969835,0.25,136.86,136.82,46.57537139]
[1642525970236,0.25,136.86,136.82,10.9632]
[1642525970535,0.25,136.86,136.81,0.25]
[1642525971136,35.67955092,136.86,136.81,0.25]
[1642525971735,0.25,136.86,136.81,46.23235861]
[1642525972137,0.25,136.87,136.81,46.23235861]
[1642525972639,0.25,136.87,136.81,10.9639]
[1642525973442,52.17841951,136.86,136.81,10.9639]
[1642525973844,0.25,136.85,136.81,10.9639]
[1642525974043,2.923,136.87,136.81,10.9639]
[1642525974243,2.05851442,136.89,136.84,10.9599]
[1642525974643,2.05851442,136.89,136.85,0.25]
[1642525975146,2.05851442,136.89,136.85,73.11150543]
[1642525975368,2.05851442,136.89,136.86,13.8816]
[1642525975568,2.05851442,136.89,136.86,19.8816]
[1642525975871,2.05851442,136.91,136.87,6.3143]
[1642525976469,2.05851442,136.91,136.88,60.27617545]
[1642525976669,2.05851442,136.91,136.88,10.9581]
[1642525976870,2.05851442,136.91,136.87,0.25]
[1642525977170,4.98051442,136.93,136.87,0.25]
[1642525977371,4.98051442,136.93,136.84,2.922]
[1642525977572,0.25,136.92,136.85,6.0]
[1642525977771,34.23365268,136.91,136.85,6.0]
[1642525977971,34.23365268,136.91,136.85,16.9608]
[1642525978172,0.25,136.9,136.85,6.0]
[1642525978375,2.922,136.89,136.85,6.0]
[1642525978571,2.922,136.89,136.82,23.7847]
[1642525978770,0.25,136.88,136.82,23.7847]
[1642525978970,0.25,136.88,136.82,34.7481]
[1642525979372,0.25,136.88,136.79,49.9349]
[1642525979373,11.2137,136.88,136.8,43.39967584]
[1642525979573,46.23665758,136.87,136.8,49.64967584]
[1642525980373,46.23665758,136.87,136.81,10.9641]
[1642525980573,2.05851442,136.88,136.82,6.0]
[1642525980771,2.05851442,136.88,136.82,6.25]
[1642525980975,22.5134,136.9,136.82,6.25]
[1642525981174,2.922,136.89,136.82,6.25]
[1642525981373,2.922,136.89,136.83,10.9623]
[1642525981573,44.99571852,136.89,136.83,58.24158416]
[1642525982274,0.25,136.88,136.83,58.24158416]
[1642525982674,2.922,136.89,136.83,58.24158416]
[1642525982873,2.922,136.89,136.84,0.25]
[1642525983075,22.5134,136.9,136.84,10.9615]
[1642525983274,22.5134,136.9,136.84,17.2115]
[1642525983674,7.04150546,136.91,136.84,17.2115]
[1642525983875,4.11950546,136.91,136.84,20.1335]
[1642525984074,4.11950546,136.92,136.84,20.1335]
[1642525984277,4.11950546,136.92,136.84,93.3235]
[1642525985175,51.82302205,136.94,136.84,93.3235]
[1642525985377,62.78202205,136.94,136.84,93.3235]
[1642525985575,0.25,136.93,136.84,93.3235]
[1642525985775,2.922,136.92,136.84,90.4015]
[1642525986176,36.12933977,136.91,136.84,90.4015]
[1642525986377,36.12933977,136.91,136.84,17.2115]
[1642525986674,0.25,136.9,136.84,6.0]
[1642525986880,2.922,136.89,136.82,2.922]
[1642525987277,0.25,136.88,136.82,2.922]
[1642525987478,2.922,136.87,136.82,2.922]
[1642525987675,39.28095863,136.86,136.82,2.922]
[1642525987876,2.923,136.85,136.82,2.922]
[1642525988276,2.923,136.85,136.77,23.8125]
[1642525988277,0.25,136.84,136.77,23.8125]
[1642525988480,2.923,136.83,136.78,6.25]
[1642525988680,0.25,136.82,136.78,0.25]
[1642525989078,37.69318101,136.82,136.78,0.25]
[1642525989778,37.69318101,136.82,136.77,6.0]
[1642525989978,2.924,136.81,136.73,24.1295]
[1642525990178,0.25,136.8,136.73,24.1295]
[1642525990378,2.924,136.79,136.73,24.1295]
[1642525990579,40.54567535,136.78,136.71,13.394]
[1642525990779,40.54567535,136.78,136.72,6.0]
[1642525991180,40.54567535,136.78,136.73,0.25]
[1642525991583,40.54567535,136.78,136.73,11.2207]
[1642525996486,40.54567535,136.78,136.74,6.0]
[1642525996686,40.54567535,136.78,136.75,0.25]
[1642525996887,10.9702,136.8,136.75,0.25]
[1642525997086,13.8932,136.81,136.74,6.0]
[1642525997390,0.25,136.79,136.74,6.0]
[1642525997587,13.8932,136.81,136.74,6.0]
[1642525997989,45.33826811,136.8,136.74,6.0]
[1642525998189,45.33826811,136.8,136.74,16.9699]
[1642525998389,45.33826811,136.8,136.74,10.9699]
[1642525998589,2.924,136.79,136.71,13.394]
[1642525998790,3.174,136.79,136.71,13.394]
[1642525998987,3.174,136.79,136.71,10.47]
[1642525999687,14.1448,136.79,136.69,10.9737]
[1642525999890,14.1448,136.79,136.68,38.1562]
[1642525999891,37.3034,136.79,136.7,6.0]
[1642526000088,37.3034,136.79,136.69,6.0]
[1642526000688,37.3034,136.79,136.68,6.0]
[1642526000887,32.65058825,136.77,136.67,16.9747]
[1642526001089,45.33826811,136.74,136.67,16.9747]
[1642526001291,3.176,136.73,136.68,0.25]
[1642526002490,3.176,136.73,136.68,11.2245]
[1642526002891,3.176,136.73,136.69,6.0]
[1642526003892,3.176,136.73,136.69,45.48455635]
[1642526004090,0.25,136.73,136.69,45.48455635]
[1642526004491,2.924,136.74,136.69,45.48455635]
[1642526004690,10.9745,136.75,136.7,0.25]
[1642526005090,0.25,136.74,136.7,0.25]
[1642526006095,0.25,136.74,136.69,45.48455635]
[1642526006295,0.25,136.74,136.7,0.25]
[1642526007196,59.57747455,136.75,136.7,0.25]
[1642526007495,13.8977,136.76,136.7,0.25]
[1642526007695,0.25,136.75,136.69,16.9737]
[1642526014128,2.924,136.76,136.69,90.1637]
[1642526014326,4.11950546,136.84,136.69,90.1637]
[1642526014327,2.925,136.82,136.71,73.19]
[1642526014528,4.11950546,136.84,136.74,10.9686]
[1642526014730,2.924,136.83,136.75,0.25]
[1642526014928,2.924,136.83,136.75,9.174]
[1642526015125,38.20779101,136.82,136.75,6.25]
[1642526015826,38.20779101,136.82,136.77,10.9681]
[1642526016630,38.20779101,136.82,136.75,0.25]
[1642526016830,3.174,136.81,136.75,0.25]
[1642526017029,3.174,136.81,136.73,33.2987]
[1642526017528,3.174,136.81,136.73,33.0487]
[1642526018533,14.1452,136.81,136.73,44.0201]
[1642526020037,3.174,136.81,136.73,44.0201]
[1642526020237,3.174,136.81,136.74,37.47592449]
[1642526020438,3.174,136.81,136.76,10.9682]
[1642526020639,2.924,136.81,136.76,10.9682]
[1642526020841,2.924,136.83,136.77,6.25]